Cogmind - Beta 14 @@@ ROGUE MODE // 2024.10.02 @ 00:31:09 Player: Eso Result: Destroyed by G-34 Mercenary with Small Laser Performance ------------- Evolutions (1) 500 Regions Visited (2) 400 Robots Destroyed (17) 85 Value Destroyed (380) 380 Prototype IDs (0) 0 Alien Tech Used (0) 0 Bonus (0) 0 TOTAL SCORE: 1365 Bonus ------- None Cogmind --------- Core Integrity 0/400 Matter 279/300 Energy 100/100 System Corruption 0% Temperature Cool (15) Movement Walking (120) Location -9/Materials Parts ------- > --- POWER (2) -------- (None) > --- PROPULSION (2) --- Aluminum Leg > --- UTILITY (2) ------ (None) > --- WEAPON (3) ------- (None) > --- INVENTORY (5) ---- Flight Unit Peak State ------------ > --- POWER ------------ Light Ion Engine > --- PROPULSION ------- Wheel Wheel > --- UTILITY ---------- Medium Armor Plating Medium Armor Plating > --- WEAPON ----------- Assault Rifle Light Assault Rifle > --- INVENTORY -------- Light Ion Engine Aluminum Leg Aluminum Leg Wheel Assault Rifle [Rating: 9] Favorites ----------- Power Light Ion Engine Engine Light Ion Engine Propulsion Wheel Leg Aluminum Leg Wheel Wheel Flight Unit Flight Unit Utility Medium Armor Plating Protection Medium Armor Plating Weapon Light Assault Rifle Energy Gun EM Pulse Gun Ballistic Gun Light Assault Rifle Build | -11 -10 -9 ------- Run | Yrd Mat Mat Slots Evolved 2 | . . 2 Power 1 | . . 1 Propulsion . | . . . Utility . | . . . Weapon 1 | . . 1 Parts Attached 22 | 7 9 6 Power 3 | 2 1 . Engine 3 | 2 1 . Core . | . . . Reactor . | . . . Propulsion 10 | 3 5 2 Treads . | . . . Leg 3 | 1 . 2 Wheel 4 | 2 2 . Hover . | . . . Flight 3 | . 3 . Utility 2 | . 2 . Device . | . . . Storage . | . . . Processor . | . . . Hackware . | . . . Protection 2 | . 2 . Artifact . | . . . Weapon 7 | 2 1 4 Energy Gun 2 | . 1 1 Energy Cannon . | . . . Ballistic Gun 5 | 2 . 3 Ballistic Cannon . | . . . Launcher . | . . . Special Weapon . | . . . Impact Weapon . | . . . Slashing Weapon . | . . . Piercing Weapon . | . . . Special Melee Weapon . | . . . Unidentified Prototypes . | . . . Parts Lost 11 | . 1 10 Power 1 | . . 1 Propulsion 3 | . . 3 Utility 1 | . 1 . Weapon 6 | . . 6 Highest Loss Streak 9 | . 1 9 To Critical Strikes 1 | . . 1 Average Slot Usage (%) 62 | . 92 30 Engine 9 | . 14 4 Leg 3 | . . 7 Wheel 12 | . 23 . Flight 4 | . 2 6 Protection 11 | . 21 . Energy Gun 2 | . . 3 Ballistic Gun 18 | . 27 8 Peak Build Rating 9 | 5 9 6 Average Rating 5 | 3 7 2 On Entrance 3 | . 5 5 Naked Turns 22 | . . 22 Heaviest Build 20 | 6 20 11 Greatest Support 20 | 20 20 20 Greatest Overweight (x) 6 | . 6 3 Average Overweight (x) . | . . . Largest Inventory Capacity 5 | 5 5 5 Average Capacity 5 | 5 5 5 Most Carried 5 | 5 5 5 Average Carried 3 | 3 4 2 Final Capacity 5 | 5 5 5 Final Carried 5 | 5 3 1 Class Distribution -------------------- 100% | Mutant Dominant Class ---------------- Mutant | -10/Materials Mutant | -9/Materials Resources | -11 -10 -9 ----------- Run | Yrd Mat Mat Matter Collected 545 | 288 133 124 Remotely . | . . . Salvage Created 487 | 97 167 223 Parts 40 | 11 9 20 Haulers Intercepted . | . . . Recyclers Shooed . | . . . Parts Field Recycled . | . . . Retrieved Matter . | . . . Parts Self-Destructed . | . . . Prevented . | . . . Kills | -11 -10 -9 ------- Run | Yrd Mat Mat Combat Hostiles Destroyed 13 | 1 5 7 Guns 13 | 1 5 7 Classes Destroyed 5 | 2 2 1 Tunneler 3 | 3 . . Watcher 1 | . 1 . Swarmer 6 | . 3 3 Grunt 5 | 1 2 2 Sentry 2 | . . 2 Best Kill Streak 4 | 4 3 3 Combat Bots Only 3 | 1 3 3 Max Kills in Single Turn 2 | 1 1 2 Gunslinging 1 | . . 1 Exploded . | . . . Melee . | . . . Uniques/NPCs Destroyed . | . . . Combat | -11 -10 -9 -------- Run | Yrd Mat Mat Hostile Shots Fired 219 | 4 42 173 Missed 75 | 1 12 62 Damage Taken 1560 | 34 417 1109 Core 452 | 24 25 403 Absorbed by Shields . | . . . Core Remaining (%) 85 | 90 80 . Volleys Fired 61 | 7 29 25 Largest 3 | 2 2 3 Hottest 99 | 40 40 99 Shots Fired 108 | 14 47 47 Gun 108 | 14 47 47 Cannon . | . . . Launcher . | . . . Special . | . . . Kinetic 95 | 14 47 34 Thermal 3 | . . 3 Explosive . | . . . Electromagnetic 10 | . . 10 Robot Hit Streak 6 | 4 4 6 Robot Miss Streak 3 | 1 3 3 Penetration Max . | . . . Secondary Targets 3 | . 1 2 Max Gunslinging Chain 1 | . 1 1 Shots Hit Robots 52 | 9 18 25 Core Hits 27 | 6 9 12 Critical Kills . | . . . Critical Parts Destroyed . | . . . Critical Strikes . | . . . Melee Attacks . | . . . Impact . | . . . Slashing . | . . . Piercing . | . . . Sneak Attacks . | . . . Combat Hostiles . | . . . Follow-up Attacks . | . . . Damage Inflicted 675 | 96 219 360 Guns 644 | 96 219 329 Cannons . | . . . Explosions 31 | . . 31 Melee . | . . . Ramming . | . . . Kinetic 571 | 96 219 256 Thermal 46 | . . 46 Explosive . | . . . Electromagnetic 58 | . . 58 Impact . | . . . Slashing . | . . . Piercing . | . . . Highest Corruption . | . . . Average Corruption . | . . . Corruption Purged . | . . . Corruption Blocked . | . . . Overload Shots . | . . . Overflow Damage . | . . . Projectiles . | . . . Explosions . | . . . Melee . | . . . Knockbacks . | . . . Impact . | . . . Kinetic . | . . . Secondary . | . . . Self-Inflicted Damage . | . . . Shots . | . . . Rammed . | . . . Targets Rammed . | . . . Kicked . | . . . Crushed . | . . . Highest Temperature 123 | 6 74 123 Average Temperature 27 | 6 24 32 Received Heat Transfer 354 | 18 87 249 Siege Activations . | . . . Robots Corrupted . | . . . Combat Hostiles . | . . . Parts Fried . | . . . Impact Corruptions . | . . . Robots Melted . | . . . Combat Hostiles . | . . . Parts Melted . | . . . Heat Transferred 87 | . . 87 Parts Sabotaged . | . . . Parts Stolen . | . . . Parts Stripped . | . . . Power Chain Reactions 1 | . . 1 Alert | -11 -10 -9 ------- Run | Yrd Mat Mat Peak Influence 286 | 35 180 286 Initial 71 | . 22 71 Average 111 | 11 98 195 Maximum Alert Level 1 | . . 1 Low Security (%) 81 | 100 100 47 Level 1 18 | . . 52 Level 2 . | . . . Level 3 . | . . . Level 4 . | . . . Level 5 . | . . . High Security . | . . . Max Security . | . . . Squads Dispatched 2 | . 1 1 Investigation 2 | . 1 1 Extermination . | . . . Reinforcement . | . . . Assault . | . . . Garrison . | . . . Intercept . | . . . Searches Triggered . | . . . Construction Impeded . | . . . Haulers Reinforced . | . . . Active Scanning Responses . | . . . Cargo Convoy Interrupts . | . . . Stealth | -11 -10 -9 --------- Run | Yrd Mat Mat Distress Signals 1 | . . 1 Communications Jammed . | . . . Distress Signals . | . . . Times Spotted 30 | 1 7 22 Peak Tracking Total 10 | 1 4 10 Tactical Retreats 3 | . . 3 Traps | -11 -10 -9 ------- Run | Yrd Mat Mat Traps Triggered 3 | . 2 1 Indirectly . | . . . Trap Hack Attempts . | . . . Triggered . | . . . Disarmed . | . . . Reprogrammed . | . . . Reused . | . . . Traps Extracted . | . . . Installed . | . . . Triggered . | . . . Machines | -11 -10 -9 ---------- Run | Yrd Mat Mat Machines Disabled 1 | . . 1 Max in Single Turn 1 | . . 1 Machines Repaired . | . . . Machines Dismantled . | . . . Machines Sabotaged . | . . . Overloaded Fab Kills . | . . . Hacking | -11 -10 -9 --------- Run | Yrd Mat Mat Machines Accessed 1 | . 1 . Terminals . | . . . Fabricators . | . . . Repair Stations . | . . . Recycling Units 1 | . 1 . Scanalyzers . | . . . Garrison Access . | . . . Total Hacks 1 | . 1 . Successful 1 | . 1 . Failed . | . . . Catastrophic . | . . . Database Lockouts . | . . . Manual . | . . . Terminals . | . . . Fabricators . | . . . Repair Stations . | . . . Recycling Units 1 | . 1 . Scanalyzers . | . . . Garrison Access . | . . . Terminal Hacks . | . . . Fabricator Hacks . | . . . Repair Station Hacks . | . . . Recycling Unit Hacks 1 | . 1 . Report Inventory 1 | . 1 . Scanalyzer . | . . . Garrison Access Hacks . | . . . Unauthorized Hacks . | . . . Terminals . | . . . Fabricators . | . . . Repair Stations . | . . . Recycling Units . | . . . Scanalyzers . | . . . Garrison Access . | . . . Data Cores Recovered . | . . . Used . | . . . Hacking Detections . | . . . Full Trace Events . | . . . Feedback Events . | . . . Feedback Blocked . | . . . Robot Schematics Acquired . | . . . Robots Built . | . . . Authchips . | . . . Time . | . . . Total Robot Build Rating . | . . . Part Schematics Acquired . | . . . Parts Built . | . . . Authchips . | . . . Time . | . . . Total Part Build Rating . | . . . Parts Repaired . | . . . Time . | . . . Parts Recycled . | . . . Recycled Matter . | . . . Retrieved Matter . | . . . Retrieved Components . | . . . Parts Scanalyzed . | . . . Part Schematics Acquired . | . . . Parts Damaged . | . . . Bothacking | -11 -10 -9 ------------ Run | Yrd Mat Mat Used RIF Installer . | . . . Robots Hacked . | . . . Non-combat . | . . . Combat . | . . . Robot Hacks Applied . | . . . Relay Couplers Released . | . . . Fabnet Peak Effective % . | . . . Robots Rewired . | . . . Allies Hacked . | . . . Hacks Repelled . | . . . Allies | -11 -10 -9 -------- Run | Yrd Mat Mat Total Allies . | . . . Largest Group . | . . . Highest-Rated Group . | . . . Highest-Rated Ally . | . . . Total Orders . | . . . Ally Attacks . | . . . Total Damage . | . . . Kills . | . . . Allies Corrupted . | . . . Allies Melted . | . . . Intel | -11 -10 -9 ------- Run | Yrd Mat Mat Robot Analysis Total . | . . . Derelict Logs Recovered . | . . . Drone Launches . | . . . Drone Recoveries . | . . . Exploration | -11 -10 -9 ------------- Run | Yrd Mat Mat Turns Passed 504 | 126 198 180 Spaces Moved 393 | 115 140 138 Core 77 | 24 3 50 Treads . | . . . Legs 49 | . . 49 Wheels 196 | 91 105 . Hover . | . . . Flight 71 | . 32 39 Fastest Speed 37 | 50 37 37 Average Speed 74 | 73 76 74 Slowest Speed 350 | 80 350 200 Overloaded Moves . | . . . Propulsion Burnouts . | . . . Robots Hopped . | . . . Cave-ins Triggered . | . . . Exploration Rate (%) 19 | 8 33 18 Regions Visited 2 Branch Regions . Pre-discovered Areas . | . . . Known Exits Taken . | . . . Unknown Exits Taken 2 | 1 1 . Scrap Searched . | . . . Spaces Dug . | . . . Terrain Destroyed . | . . . Melee . | . . . Projectile . | . . . AOE . | . . . Terrain Rammed . | . . . Walls Destroyed . | . . . Machines Disabled . | . . . Actions | -11 -10 -9 --------- Run | Yrd Mat Mat Total 508 | 146 190 172 Wait . | . . . Move 391 | 114 139 138 Hop . | . . . Pick Up 20 | 13 4 3 Fast Attach 5 | . 4 1 Attach 12 | 6 1 5 Detach 1 | 1 . . Swap 5 | 1 4 . Drop 13 | 4 9 . Fire 61 | 7 29 25 Melee . | . . . Ram . | . . . Kick . | . . . Crush . | . . . Escape Stasis . | . . . Rewire . | . . . Trap . | . . . Miscellaneous . | . . . Route ------- -11/Scrapyard -10/Materials (discovered 2 exits: [*Mat] / [*Min]) -9/Materials (discovered 1 exit: [*Mat]) History --------- Turn | Location | Event 2 | -11/Scrapyard | Met Revision 17 68 | -11/Scrapyard | Discovered new exit (range 8) 127 | -11/Scrapyard | Entered Materials 195 | -10/Materials | Discovered new exit (range 16) 305 | -10/Materials | Discovered new exit (range 6) 325 | -10/Materials | Entered another Materials area 325 | -9/Materials | Evolved 2 slots: Power x1, Weapon x1 337 | -9/Materials | Build established: Mutant 424 | -9/Materials | Core integrity fell below 50% 454 | -9/Materials | Lost 9 parts (1p2n6w) 502 | -9/Materials | Core integrity fell below 20% 503 | -9/Materials | Discovered new exit (range 15) 505 | -9/Materials | Destroyed by G-34 Mercenary with Small Laser Last Messages --------------- K-01 Serf collects debris. R-06 Scavenger collects Flight Unit. K-01 Serf collects debris. Hvy. Assault Rifle destroyed. K-01 Serf collects debris. R-06 Scavenger collects Flight Unit. K-01 Serf collects debris. K-01 Serf cleans the Nuclear Reactor. K-01 Serf collects debris. K-01 Serf destroyed. Acquired 21 matter. K-01 Serf collects debris. W-16 Scout sends out distress signal. K-01 Serf collects debris. Triggered Alarm Trap. An alarm sounds. ALERT: Alarm triggered, dispatching investigation squad. EXIT=FOUND Aluminum Leg destroyed. Map ----- +----------------------------------------------------+ | ??????????????????????????????????????? | | ??????????????????????????????????????? | | ??????????????????????????????????????? | | ??????????????????????????????????????? | | ??????????????????????????????????????? | | ??????????????????????????????????????? | | ??????????????????????????????????????? | | ??????????????????????????????????????? | | ??????????????????????????????????????? | | ??????????????????????????????????????? | | ???????????????????????? ???????????? | | ???????????????????????? < ##?????????? | | ???????????????????????? ?????????? | | ???????????????????????# ??????????? | | ???????????????????????# ??????????? | | ???????????????????????# ??????????? | | ???????????????????????# gg ??????????? | | ???????????????????????# ??????????? | | ???????????????????????# #??????????? | | ???????????????????????# #??????????? | | ???????????????????????# #??????????? | | ???????????????????????# #??????????? | | ???????????????????????# #??????????? | | ???????????????????????# #??????#???? | | ???????????????????????# #???? #???? | | ???????????????????????# @ #?? #???? | | ???????????????????????# # #???? | | ???????????????????????# Y !! #???? | | ???????????????????????# # != #???? | | ???????????????????????+ # #???? | | ???????????????????????# #?######???? | | ???????????????????????# #??????????? | | ???????????????????????# #??????????? | | ????????????#####??????#w #??????????? | | ??????????? ??????# #??????????? | | ???????? """"" ??????# #??????????? | | ???????# """"" ???????# #??????????? | | ?????????""""" !???????# #??????????? | | ?????????? ???????# #??????????? | | ???????????? ???????#sYs#??????????? | | ???????????###+######### Y #??????????? | | ???????????# +??????????? | | ???????????# #??????????? | | ???????????# """ """ #??????????? | | ???????????# """ """ #??????????? | | ???????????# """ """ #??????????? | | ???????????# #??????????? | | ???????????# #??????????? | | ???????????# """ """ +??????????? | | ???????????# """ """ #??????????? | +----------------------------------------------------+ Best States ------------- Heat Dissipation 28 Energy Generation 10 Energy Capacity 125 Matter Stores 300 Matter Capacity 300 Sight Range 16 Terrain Scan Density 10 Armor Coverage 450 Evasion (%) 62 Item Schematics ----------------- None Robot Schematics ------------------ None Fabricated ------------ Nothing Alien Tech Used ----------------- None Achievements -------------- None Challenges ------------ None Game ------ Seed StasisCryofiberClaw Manual? 0 Play Time 00:15:42 Cumulative 0.4 hours Start 2024.10.02 @ 00:17:07 End 2024.10.02 @ 00:31:09 Sessions 1 Manual Loads 0 Difficulty Rogue Special Mode None Game No. 3 Rogue 3 Adventurer 0 Explorer 0 Win Type - Total 0 Types 0/0/0/0/0/0/0/0/0 Lore% 0 Gallery% 2 Achievement% 3 Wizard Run 0 Options --------- Layout 1 ASCII 0 Keyboard 0 Movement Mouse Keybinds 0 Fullscreen 1 Font 24/X11 Map View 50x35 Zoom Use 0% Tactical HUD 0 Map Filters NONE Filters NONE Steam 1 RUN: 89da634e-da74-452b-a5ff-b42aea83482d